fUST/lending_fUST_20260112
["ID","MTS","AMOUNT","RATE_DAILY","PERIOD"]
[401367064,1768159834081,-500.0,0.00012893,2]
[401367065,1768159834090,-500.0,0.00012893,2]
[401367066,1768159834099,-500.0,0.00012893,2]
[401367067,1768159834109,-500.0,0.00012893,2]
[401367068,1768159834118,-500.0,0.00012893,2]
[401367069,1768159834128,-500.0,0.00012893,2]
[401367070,1768159834137,-500.0,0.00012893,2]
[401367071,1768159834147,-500.0,0.00012893,2]
[401367072,1768159834157,-645.05883778,0.00012893,2]
[401367073,1768159834166,-500.0,0.00012893,2]
[401367074,1768159834177,-500.0,0.00012893,2]
[401367075,1768159834186,-500.0,0.00012893,2]
[401367076,1768159834198,-500.0,0.00012893,2]
[401367077,1768159834208,-500.0,0.00012893,2]
[401367078,1768159834218,-500.0,0.00012893,2]
[401367079,1768159834228,-500.0,0.00012893,2]
[401367080,1768159834239,-500.0,0.00012893,2]
[401367081,1768159834249,-500.0,0.00012893,2]
[401367082,1768159834259,-500.0,0.00012893,2]
[401367083,1768159834268,-500.0,0.00012893,2]
[401367084,1768159834278,-500.0,0.00012893,2]
[401367085,1768159834288,-500.0,0.00012893,2]
[401367086,1768159834297,-500.0,0.00012893,2]
[401367087,1768159834307,-3561.90659513,0.00012893,2]
[401367088,1768159834322,-924.26925233,0.00012893,2]
[401367089,1768159834331,-4486.17584746,0.00012893,2]
[401367090,1768159834341,-4486.17584746,0.00012893,2]
[401367091,1768159834350,-1987.00764416,0.00012893,2]
[401367092,1768159834361,-2499.1682033,0.00012893,2]
[401367093,1768159834371,-1294.30131959,0.00012893,2]
[401367094,1768159834382,-1000.0,0.00012893,2]
[401367095,1768159834461,-407.03070456,0.00012893,2]
[401367096,1768159834473,-1784.84382331,0.00012893,2]
[401367097,1768159834483,-4486.17584746,0.00012893,2]
[401367098,1768159834492,-3348.89058658,0.00012893,2]
[401367099,1768159834503,-1137.28526088,0.00012893,2]
[401367100,1768159834513,-1.76263408,0.00012893,2]
[401367103,1768159838575,-642.59,0.000102,2]
[401367104,1768159838585,-642.59,0.000104,2]
[401367105,1768159838595,-642.59,0.000106,2]
[401367106,1768159838604,-742.65722702,0.00012892,2]
[401367107,1768159838614,-742.65722702,0.00012892,2]
[401367108,1768159838624,-742.65722702,0.00012892,2]
[401367109,1768159838633,-742.65722702,0.00012892,2]
[401367110,1768159838643,-742.65722702,0.00012892,2]
[401367111,1768159838653,-742.65722702,0.00012892,2]
[401367112,1768159838663,-527.90990838,0.00012965,2]
[401367113,1768159838672,-150.67,0.00013,2]
[401367114,1768159838792,-2435.87748646,0.00013,2]
[401367115,1768159838803,-152.88,0.000132,2]
[401367116,1768159838812,-500.0,0.00013273,2]
[401367117,1768159838822,-500.0,0.00013273,2]
[401367118,1768159838831,-151.1645942,0.00013273,2]
[401367119,1768159838841,-500.0,0.00013273,2]
[401367120,1768159838851,-500.0,0.00013273,2]
[401367121,1768159838862,-397.43235778,0.00013273,2]
[401367122,1768159838872,-500.0,0.00013273,2]
[401367123,1768159838881,-500.0,0.00013273,2]
[401367124,1768159838891,-500.0,0.00013273,2]
[401367125,1768159838902,-500.0,0.00013273,2]
[401367126,1768159838912,-500.0,0.00013273,2]
[401367127,1768159838922,-500.0,0.00013273,2]
[401367128,1768159838932,-500.0,0.00013273,2]
[401367129,1768159838942,-500.0,0.00013273,2]
[401367130,1768159838953,-500.0,0.00013273,2]
[401367131,1768159838968,-500.0,0.00013273,2]
[401367132,1768159838978,-500.0,0.00013273,2]
[401367133,1768159838988,-500.0,0.00013273,2]
[401367134,1768159838999,-500.0,0.00013273,2]
[401367135,1768159839010,-500.0,0.00013273,2]
[401367136,1768159839021,-561.44282102,0.00013273,2]
[401367137,1768159839031,-500.0,0.00013273,2]
[401367138,1768159839040,-500.0,0.00013273,2]
[401367139,1768159839050,-500.0,0.00013273,2]
[401367140,1768159839060,-500.0,0.00013273,2]
[401367141,1768159839070,-500.0,0.00013273,2]
[401367142,1768159839080,-500.0,0.00013273,2]
[401367143,1768159839089,-500.0,0.00013273,2]
[401367144,1768159839099,-500.0,0.00013273,2]
[401367145,1768159839109,-500.0,0.00013273,2]
[401367146,1768159839118,-500.0,0.00013273,2]
[401367147,1768159839128,-500.0,0.00013273,2]
[401367148,1768159839137,-500.0,0.00013273,2]
[401367149,1768159839146,-484.6316526,0.00013495,2]
[401367150,1768159839157,-151.0,0.000136,2]
[401367151,1768159839166,-150.67,0.000136,2]
[401367152,1768159839176,-3789.85,0.0001369,2]
[401367153,1768159839185,-500.0,0.00013698,2]
[401367154,1768159839194,-500.0,0.00013698,2]
[401367155,1768159839204,-500.0,0.00013698,2]
[401367156,1768159839213,-500.0,0.00013698,2]
[401367157,1768159839223,-564.53140937,0.00013698,2]
[401367158,1768159839233,-500.0,0.00013698,2]
[401367159,1768159839243,-500.0,0.00013698,2]
[401367160,1768159839253,-500.0,0.00013698,2]
[401367161,1768159839263,-500.0,0.00013698,2]
[401367162,1768159839273,-500.0,0.00013698,2]
[401367163,1768159839283,-500.0,0.00013698,2]
[401367164,1768159839293,-500.0,0.00013698,2]
[401367165,1768159839303,-500.0,0.00013698,2]
[401367166,1768159839313,-500.0,0.00013698,2]
[401367167,1768159839322,-500.0,0.00013698,2]
[401367168,1768159839332,-500.0,0.00013698,2]
[401367169,1768159839342,-500.0,0.00013698,2]
[401367170,1768159839352,-500.0,0.00013698,2]
[401367171,1768159839362,-604.39433601,0.00013698,2]
[401367172,1768159839372,-500.0,0.00013698,2]
[401367173,1768159839382,-500.0,0.00013698,2]
[401367174,1768159839392,-500.0,0.00013698,2]
[401367175,1768159839402,-500.0,0.00013698,2]
[401367176,1768159839412,-500.0,0.00013698,2]
[401367177,1768159839421,-500.0,0.00013698,2]
[401367178,1768159839431,-500.0,0.00013698,2]
[401367179,1768159839440,-534.57834013,0.00013698,2]
[401367180,1768159839450,-500.0,0.00013698,2]
[401367181,1768159839460,-500.0,0.00013698,2]
[401367182,1768159839469,-500.0,0.00013698,2]
[401367183,1768159839478,-500.0,0.00013698,2]
[401367184,1768159839488,-500.0,0.00013698,2]
[401367185,1768159839498,-500.0,0.00013698,2]
[401367186,1768159839507,-500.0,0.00013698,2]
[401367187,1768159839516,-500.0,0.00013698,2]
[401367188,1768159839526,-500.0,0.00013698,2]
[401367189,1768159839535,-500.0,0.00013698,2]
[401367190,1768159839545,-500.0,0.00013698,2]
[401367191,1768159839554,-161.928,0.00013698,2]
[401367192,1768159839563,-1279.01,0.00013698,2]
[401367193,1768159839573,-1279.01,0.00013698,2]
[401367194,1768159839583,-1279.01,0.00013698,2]
[401367195,1768159839592,-1279.01,0.00013698,2]
[401367196,1768159839601,-1279.01,0.00013698,2]
[401367197,1768159839611,-1279.01,0.00013698,2]
[401367198,1768159839620,-1279.01,0.00013698,2]
[401367199,1768159839630,-1279.01,0.00013698,2]
[401367200,1768159839639,-1279.01,0.00013698,2]
[401367201,1768159839652,-1279.01,0.00013698,2]
[401367202,1768159839662,-1279.01,0.00013698,2]
[401367203,1768159839671,-1279.01,0.00013698,2]
[401367204,1768159839680,-1279.01,0.00013698,2]
[401367205,1768159839690,-1279.01,0.00013698,2]
[401367206,1768159839700,-1279.01,0.00013698,2]
[401367207,1768159839710,-1279.01,0.00013698,2]
[401367208,1768159839720,-1279.01,0.00013698,2]
[401367209,1768159839730,-1279.01,0.00013698,2]
[401367210,1768159839740,-1279.01,0.00013698,2]
[401367211,1768159839750,-1279.01,0.00013698,2]
[401367212,1768159839760,-1279.01,0.00013698,2]
[401367213,1768159839770,-1279.01,0.00013698,2]
[401367214,1768159839783,-1279.01,0.00013698,2]
[401367215,1768159839798,-1279.18132045,0.00013698,2]
[401367216,1768159839807,-890.9559035,0.00013699,2]
[401367217,1768159839817,-500.0,0.00013699,2]
[401367218,1768159839826,-500.0,0.00013699,2]
[401367219,1768159839836,-500.0,0.00013699,2]
[401367220,1768159839846,-434.26717667,0.00013699,2]
[401367221,1768159839857,-252.81793801,0.00013699,2]
[401367222,1768159839866,-429.70423336,0.00013699,2]
[401367223,1768159839876,-500.0,0.00013699,2]
[401367224,1768159839886,-500.0,0.00013699,2]
[401367225,1768159839896,-500.0,0.00013699,2]
[401367226,1768159839905,-500.0,0.00013699,2]
[401367227,1768159839914,-500.0,0.00013699,2]
[401367228,1768159839925,-500.0,0.00013699,2]
[401367229,1768159839934,-500.0,0.00013699,2]
[401367230,1768159839945,-500.0,0.00013699,2]
[401367231,1768159839955,-500.0,0.00013699,2]
[401367232,1768159839968,-500.0,0.00013699,2]
[401367233,1768159839977,-500.0,0.00013699,2]
[401367234,1768159839987,-500.0,0.00013699,2]
[401367235,1768159839996,-500.0,0.00013699,2]
[401367236,1768159840006,-500.0,0.00013699,2]
[401367237,1768159840015,-411.07321341,0.00013699,2]
[401367238,1768159840025,-500.0,0.00013699,2]
[401367239,1768159840038,-500.0,0.00013699,2]
[401367240,1768159840048,-594.31332583,0.00013699,2]
[401367241,1768159840058,-500.0,0.00013699,2]
[401367242,1768159840067,-500.0,0.00013699,2]
[401367243,1768159840076,-500.0,0.00013699,2]
[401367244,1768159840086,-500.0,0.00013699,2]
[401367245,1768159840095,-500.0,0.00013699,2]
[401367246,1768159840105,-500.0,0.00013699,2]
[401367247,1768159840113,-500.0,0.00013699,2]
[401367248,1768159840123,-500.0,0.00013699,2]
[401367249,1768159840131,-500.0,0.00013699,2]
[401367250,1768159840140,-500.0,0.00013699,2]
[401367251,1768159840149,-500.0,0.00013699,2]
[401367252,1768159840159,-500.0,0.00013699,2]
[401367253,1768159840168,-500.0,0.00013699,2]
[401367254,1768159840177,-500.0,0.00013699,2]
[401367255,1768159840187,-500.0,0.00013699,2]
[401367256,1768159840196,-295.9151759,0.00013699,2]
[401367257,1768159840206,-500.0,0.00013699,2]
[401367258,1768159840215,-500.0,0.00013699,2]
[401367259,1768159840225,-500.0,0.00013699,2]
[401367260,1768159840235,-500.0,0.00013699,2]
[401367261,1768159840245,-500.0,0.00013699,2]
[401367262,1768159840255,-500.0,0.00013699,2]
[401367263,1768159840266,-500.0,0.00013699,2]
[401367264,1768159840276,-500.0,0.00013699,2]
[401367266,1768159840286,-500.0,0.00013699,2]
[401367267,1768159840297,-210.18768542,0.00013699,2]
[401367268,1768159840306,-500.0,0.00013699,2]
[401367269,1768159840316,-152.88,0.000138,2]
[401367270,1768159840325,-1000.0,0.00013821,2]
[401367271,1768159840334,-1000.0,0.00013821,2]
[401367272,1768159840344,-1000.0,0.00013821,2]
[401367273,1768159840353,-1000.0,0.00013821,2]
[401367274,1768159840363,-1000.0,0.00013821,2]
[401367275,1768159840372,-523.76320024,0.00013821,2]
[401367276,1768159840382,-1000.0,0.00013821,2]
[401367277,1768159840392,-587.59486789,0.00013821,2]
[401367278,1768159840401,-1000.0,0.00013821,2]
[401367279,1768159840411,-1000.0,0.00013821,2]
[401367280,1768159840420,-1000.0,0.00013821,2]
[401367282,1768159840430,-1000.0,0.00013821,2]
[401367283,1768159840439,-1000.0,0.00013821,2]
[401367285,1768159840449,-1000.0,0.00013821,2]
[401367287,1768159840459,-1000.0,0.00013821,2]
[401367289,1768159840469,-1000.0,0.00013821,2]
[401367290,1768159840478,-1000.0,0.00013821,2]
[401367291,1768159840488,-1000.0,0.00013821,2]
[401367292,1768159840497,-570.28131147,0.00013821,2]
[401367293,1768159840506,-1000.0,0.00013821,2]
[401367294,1768159840515,-1000.0,0.00013821,2]
[401367295,1768159840524,-1000.0,0.00013821,2]
[401367296,1768159840533,-1000.0,0.00013821,2]
[401367298,1768159840543,-1000.0,0.00013821,2]
[401367300,1768159840552,-1000.0,0.00013821,2]
[401367302,1768159840561,-679.48829201,0.00013821,2]
[401367304,1768159840570,-1000.0,0.00013821,2]
[401367306,1768159840579,-151.0,0.000139,2]
[401367308,1768159840588,-150.67,0.000141,2]
[401367310,1768159840597,-1000.0,0.0001418,2]
[401367312,1768159840606,-244.0,0.0001418,2]
[401367313,1768159840615,-1000.0,0.00014247,2]
[401367315,1768159840625,-1000.0,0.00014247,2]
[401367317,1768159840634,-1000.0,0.00014247,2]
[401367320,1768159840644,-1000.0,0.00014247,2]
[401367322,1768159840653,-1000.0,0.00014247,2]
[401367324,1768159840662,-1000.0,0.00014247,2]
[401367326,1768159840672,-1000.0,0.00014247,2]
[401367328,1768159840680,-1000.0,0.00014247,2]
[401367330,1768159840690,-504.32249359,0.00014247,2]
[401367331,1768159840699,-1000.0,0.00014247,2]
[401367333,1768159840708,-671.67593478,0.00014247,2]
[401367336,1768159840718,-1000.0,0.00014247,2]
[401367338,1768159840727,-1000.0,0.00014247,2]
[401367339,1768159840736,-413.61388111,0.00014247,2]
[401367341,1768159840745,-1000.0,0.00014247,2]
[401367343,1768159840755,-1000.0,0.00014247,2]
[401367345,1768159840764,-1000.0,0.00014247,2]
[401367347,1768159840773,-1000.0,0.00014247,2]
[401367349,1768159840782,-1000.0,0.00014247,2]
[401367351,1768159840791,-392.83683556,0.00014247,2]
[401367353,1768159840803,-1000.0,0.00014247,2]
[401367356,1768159840813,-1000.0,0.00014247,2]
[401367367,1768159840907,-1000.0,0.00014247,2]
[401367369,1768159840916,-1000.0,0.00014247,2]
[401367371,1768159840925,-1000.0,0.00014247,2]
[401367373,1768159840934,-804.84096496,0.00014247,2]
[401367375,1768159840944,-1000.0,0.00014247,2]
[401367377,1768159840953,-788.05151213,0.00014247,2]
[401367379,1768159840967,-500.0,0.00014247,2]
[401367381,1768159840976,-1000.0,0.00014247,2]
[401367383,1768159840986,-1000.0,0.00014247,2]
[401367385,1768159840996,-1000.0,0.00014247,2]
[401367387,1768159841006,-1009.97698878,0.00014247,2]
[401367389,1768159841016,-1000.0,0.00014247,2]
[401367391,1768159841025,-1000.0,0.00014247,2]
[401367393,1768159841036,-1000.0,0.00014247,2]
[401367395,1768159841045,-1000.0,0.00014247,2]
[401367397,1768159841055,-504.27661041,0.00014368,2]
[401367399,1768159841064,-1000.0,0.00014368,2]
[401367401,1768159841073,-1500.0,0.00014368,2]
[401367403,1768159841082,-1500.0,0.00014368,2]
[401367405,1768159841091,-502.2053155,0.00014368,2]
[401367407,1768159841100,-670.16316784,0.00014368,2]
[401367409,1768159841111,-804.14307857,0.00014368,2]
[401367411,1768159841120,-965.81779273,0.00014368,2]
[401367413,1768159841129,-1500.0,0.00014368,2]
[401367415,1768159841138,-1500.0,0.00014368,2]
[401367417,1768159841147,-1500.0,0.00014368,2]
[401367419,1768159841157,-1500.0,0.00014368,2]
[401367421,1768159841167,-1500.0,0.00014368,2]
[401367423,1768159841176,-1500.0,0.00014368,2]
[401367425,1768159841185,-1001.6206004,0.00014368,2]
[401367427,1768159841194,-1500.0,0.00014368,2]
[401367429,1768159841203,-1500.0,0.00014368,2]
[401367431,1768159841213,-151.0,0.000144,2]
[401367433,1768159841222,-151.0,0.000144,2]
[401367435,1768159841231,-152.88,0.000144,2]
[401367437,1768159841240,-5000.0,0.0001451,2]
[401367439,1768159841250,-151.0,0.000147,2]
[401367441,1768159841259,-150.67,0.000147,2]
[401367443,1768159841269,-1500.0,0.00014795,2]
[401367445,1768159841278,-1500.0,0.00014795,2]
[401367447,1768159841287,-488.64589349,0.00014795,2]
[401367449,1768159841297,-1500.0,0.00014795,2]
[401367451,1768159841306,-1500.0,0.00014795,2]
[401367453,1768159841315,-1163.68911449,0.00014795,2]
[401367455,1768159841324,-1500.0,0.00014795,2]
[401367457,1768159841333,-1500.0,0.00014795,2]
[401367459,1768159841342,-1000.0,0.00014795,2]
[401367461,1768159841351,-1500.0,0.00014795,2]
[401367463,1768159841360,-482.84709438,0.00014795,2]
[401367465,1768159841369,-375.35271766,0.00014795,2]
[401367467,1768159841378,-1500.0,0.00014795,2]
[401367469,1768159841387,-100000.0,0.00014882,2]
[401367470,1768159841396,-594.79530897,0.000149,2]
[401367473,1768159841406,-151.0,0.000149,2]
[401367475,1768159841415,-513.35365922,0.00014916,2]
[401367477,1768159841425,-998.81892914,0.00014916,2]
[401367479,1768159841435,-763.96834089,0.00014916,2]
[401367481,1768159841444,-2000.0,0.00014916,2]
[401367483,1768159841453,-2000.0,0.00014916,2]
[401367485,1768159841463,-500.0,0.00014916,2]
[401367487,1768159841472,-2000.0,0.00014916,2]
[401367489,1768159841481,-2000.0,0.00014916,2]
[401367491,1768159841490,-1496.03596481,0.00014916,2]
[401367493,1768159841502,-2000.0,0.00014916,2]
[401367495,1768159841512,-1000.0,0.00015,2]
[401367497,1768159841521,-1018.62930606,0.00015,2]
[401367499,1768159841530,-33977.91469931,0.00015,2]
[401367501,1768159841539,-150.95375382,0.00015,2]
[401367503,1768159841548,-152.88,0.000151,2]
[401367504,1768159841560,-3516.60682836,0.00015242,2]
[401367506,1768159841571,-150.67,0.000153,2]
[401367508,1768159841581,-1157.07022264,0.00015342,2]
[401367510,1768159841591,-1015.29707634,0.00015342,2]
[401367512,1768159841600,-2000.0,0.00015342,2]
[401367514,1768159841608,-500.79965419,0.00015342,2]
[401367516,1768159841618,-1204.73550321,0.00015342,2]
[401367518,1768159841627,-418.97723055,0.00015342,2]
[401367520,1768159841636,-2000.0,0.00015342,2]
[401367522,1768159841645,-2000.0,0.00015342,2]
[401367524,1768159841655,-151.0,0.000154,2]
[401367526,1768159841664,-1782.0683631,0.00015464,2]
[401367529,1768159841674,-2500.0,0.00015464,2]
[401367531,1768159841684,-2500.0,0.00015464,2]
[401367533,1768159841693,-1821.06911742,0.00015464,2]
[401367535,1768159841702,-2500.0,0.00015464,2]
[401367537,1768159841711,-548.77407721,0.00015495,2]
[401367539,1768159841720,-1000.0,0.00015598,2]
[401367541,1768159841730,-492.0,0.00015598,2]
[401367543,1768159841739,-151.0,0.000157,2]
[401367544,1768159841749,-152.88,0.000157,2]
[401367546,1768159841759,-1140.95571878,0.0001589,2]
[401367548,1768159841769,-2500.0,0.0001589,2]
[401367550,1768159841778,-2500.0,0.0001589,2]
[401367553,1768159841788,-151.0,0.000159,2]
[401367554,1768159841799,-150.67,0.000159,2]
[401367556,1768159841808,-215.80455964,0.00016,2]
[401367558,1768159841818,-151.0,0.00016,2]
[401367560,1768159841828,-3000.0,0.00016012,2]
[401367563,1768159841838,-1033.32597111,0.00016012,2]
[401367564,1768159841847,-3000.0,0.00016012,2]
[401367566,1768159841857,-152.88,0.000163,2]
[401367568,1768159841866,-150.67,0.000164,2]
[401367570,1768159841876,-500.0,0.00016438,2]
[401367573,1768159841887,-500.0,0.00016438,2]
[401367575,1768159841899,-500.0,0.00016438,2]
[401367576,1768159841908,-500.0,0.00016438,2]
[401367579,1768159841917,-500.0,0.00016438,2]
[401367580,1768159841927,-423.20869213,0.00016438,2]
[401367583,1768159841936,-3000.0,0.00016438,2]
[401367584,1768159841945,-3000.0,0.00016438,2]
[401367586,1768159841954,-151.0,0.000165,2]
[401367588,1768159841967,-1495.04726907,0.0001656,2]
[401367590,1768159841976,-3500.0,0.0001656,2]
[401367592,1768159841986,-1000.0,0.000166,2]
[401367595,1768159841995,-1000.0,0.000166,2]
[401367597,1768159842006,-1000.0,0.000166,2]
[401367599,1768159842015,-1000.0,0.000166,2]
[401367601,1768159842025,-1000.0,0.000166,2]
[401367603,1768159842037,-1000.0,0.000166,2]
[401367605,1768159842046,-1000.0,0.000166,2]
[401367607,1768159842055,-1000.0,0.000166,2]
[401367609,1768159842064,-1000.0,0.000166,2]
[401367611,1768159842073,-1000.0,0.000166,2]
[401367613,1768159842084,-30988.83201973,0.00016778,2]
[401367615,1768159842094,-152.88,0.000169,2]
[401367617,1768159842103,-3500.0,0.00016986,2]
[401367619,1768159842112,-3500.0,0.00016986,2]
[401367621,1768159842122,-151.0,0.00017,2]
[401367623,1768159842131,-151.0,0.00017,2]
[401367625,1768159842140,-150.67,0.00017,2]
[401367627,1768159842149,-64684.1716686,0.00017,2]
[401367629,1768159842158,-151.0,0.00017,2]
[401367631,1768159842167,-1232.45700431,0.00017108,2]
[401367633,1768159842176,-1000.0,0.00017157,2]
[401367635,1768159842186,-791.0,0.00017157,2]
[401367637,1768159842195,-5000.0,0.00017412,2]
[401367639,1768159842204,-612.91650182,0.00017495,2]
[401367641,1768159842213,-151.0,0.000175,2]
[401367643,1768159842222,-4000.0,0.00017534,2]
[401367645,1768159842231,-4000.0,0.00017534,2]
[401367647,1768159842241,-150.67,0.000176,2]
[401367649,1768159842251,-2136.47349432,0.000176,2]
[401367651,1768159842260,-161769.51166541,0.00018,2]
[401367653,1768159842270,-175.972983,0.00018,2]
[401367655,1768159842279,-1461.92726002,0.00018082,2]
[401367657,1768159842288,-4500.0,0.00018082,2]
[401367659,1768159842297,-151.0,0.000181,2]
[401367661,1768159842307,-150.67,0.000181,2]
[401367663,1768159842316,-500.0,0.0001822,2]
[401367665,1768159842326,-554.0,0.0001822,2]
[401367666,1768159842336,-151.52117963,0.0001822,2]
[401367668,1768159842346,-500.0,0.0001822,2]
[401367670,1768159842355,-151.0,0.000183,2]
[401367672,1768159842364,-500.0,0.00018357,2]
[401367674,1768159842373,-554.0,0.00018357,2]
[401367676,1768159842383,-500.0,0.00018357,2]
[401367678,1768159842393,-500.0,0.00018494,2]
[401367680,1768159842403,-554.0,0.00018494,2]
[401367682,1768159842412,-500.0,0.00018494,2]
[401367683,1768159842422,-3516.60682833,0.00018582,2]
[401367685,1768159842431,-5000.0,0.0001863,2]
[401367687,1768159842440,-259.14783661,0.00018631,2]
[401367689,1768159842450,-500.0,0.00018631,2]
[401367691,1768159842458,-554.0,0.00018631,2]
[401367693,1768159842469,-500.0,0.00018631,2]
[401367695,1768159842478,-150.67,0.000187,2]
[401367697,1768159842487,-277.35465744,0.00018768,2]
[401367699,1768159842496,-554.0,0.00018768,2]
[401367701,1768159842506,-534.04273111,0.00018822,2]
[401367703,1768159842515,-171.28240625,0.00018852,2]
[401367705,1768159842524,-5000.0,0.00018863,2]
[401367707,1768159842533,-1000.0,0.00018873,2]
[401367709,1768159842543,-1000.0,0.00018873,2]
[401367711,1768159842553,-303.10001603,0.000189,2]
[401367713,1768159842562,-502.69926409,0.000189,2]
[401367715,1768159842572,-554.0,0.00018905,2]
[401367717,1768159842581,-17960.14853983,0.00019,2]
[401367719,1768159842590,-2603.49,0.00019,2]
[401367721,1768159842599,-554.0,0.00019042,2]
[401367723,1768159842608,-303.10001603,0.00019089,2]
[401367725,1768159842617,-5500.0,0.00019178,2]
[401367727,1768159842627,-554.0,0.00019179,2]
[401367728,1768159842637,-151.0,0.000192,2]
[401367729,1768159842647,-32701.7,0.000192,2]
[401367730,1768159842657,-3359.23,0.000192,2]
[401367731,1768159842666,-162.99,0.000192,2]
[401367732,1768159842675,-164.08,0.000192,2]
[401367733,1768159842684,-167.64,0.000192,2]
[401367734,1768159842693,-303.10001603,0.00019278,2]
[401367735,1768159842703,-150.67,0.000193,2]
[401367736,1768159842712,-554.0,0.00019316,2]
[401367737,1768159842805,-554.0,0.00019453,2]
[401367738,1768159842814,-303.10001606,0.00019467,2]
[401367739,1768159842824,-677.05892643,0.00019495,2]
[401367740,1768159842834,-2384.98267252,0.00019495,2]
[401367741,1768159842843,-554.0,0.0001959,2]
[401367742,1768159842853,-289.0,0.00019594,2]
[401367743,1768159842862,-151.0,0.000196,2]
[401367744,1768159842873,-685.129625,0.0001967,2]
[401367745,1768159842882,-4623.1209168,0.00019726,2]
[401367746,1768159842892,-554.0,0.00019727,2]
[401367747,1768159842902,-1041.66666667,0.00019819,2]
[401367748,1768159842912,-349.0,0.00019824,2]
[401367749,1768159842921,-554.0,0.00019864,2]
[401367750,1768159842930,-150.67,0.000199,2]
[401367751,1768159842940,-151.55000802,0.0002,2]
[401367752,1768159842949,-652.55120361,0.0002,2]
[401367753,1768159842961,-14696.06851441,0.0002,2]
[401367754,1768159842970,-371.48046337,0.0002,2]
[401367755,1768159842979,-717.29999854,0.0002,2]
[401367757,1768159842988,-78214.50227922,0.0002,2]
[401367758,1768159842997,-23000.0,0.0002,2]
[401367760,1768159843007,-202.6566192,0.0002,2]
[401367762,1768159843017,-504.09317231,0.0002,2]
[401367765,1768159843026,-159.95633515,0.0002,2]
[401367767,1768159843036,-554.0,0.00020001,2]
[401367769,1768159843046,-440.0,0.00020036,2]
[401367772,1768159843055,-485.24067775,0.0002013,2]
[401367774,1768159843065,-554.0,0.00020138,2]
[401367776,1768159843074,-554.0,0.00020275,2]
[401367778,1768159843083,-151.0,0.000204,3]
[401367780,1768159843092,-150.67,0.000204,2]
[401367782,1768159843102,-554.0,0.00020412,2]
[401367784,1768159843111,-1541.54165626,0.00020489,2]
[401367786,1768159843121,-554.0,0.00020549,2]
[401367788,1768159843130,-1388.8426127,0.0002061,2]
[401367790,1768159843140,-397.51377875,0.00020671,8]
[401367792,1768159843150,-554.0,0.00020686,2]
[401367794,1768159843159,-764.1,0.00020697,2]
[401367796,1768159843169,-2136.17092446,0.00020732,2]
[401367798,1768159843178,-1000.0,0.0002076,2]
[401367800,1768159843187,-1000.0,0.0002076,2]
[401367802,1768159843196,-579.0,0.0002076,2]
[401367804,1768159843206,-554.0,0.00020823,2]
[401367806,1768159843215,-151.0,0.000209,4]
[401367808,1768159843224,-256.38902735,0.000209,2]
[401367810,1768159843233,-554.0,0.0002096,2]
[401367812,1768159843242,-150.67,0.00021,2]
[401367814,1768159843252,-277.25260667,0.00021,2]
[401367816,1768159843261,-46533.88981491,0.00021,2]
[401367818,1768159843271,-554.0,0.00021097,2]
[401367820,1768159843280,-2036.14450906,0.00021101,2]
[401367822,1768159843289,-4346.67070604,0.00021101,2]
[401367824,1768159843298,-554.0,0.00021234,2]